{"text_format":"1","workbook":"xlsx","n_sheets":1,"sheets":["The tracking file."],"not_rendered":{"charts":0,"images":0,"macros":1,"external_links":0,"defined_names":2,"comments":0,"pivot_tables":0},"unopened":[],"bounds":{"document_bytes":16777216,"sheet_cells":100000,"rows_first":2000,"rows_last":500,"rows_between":2000,"halvings":0,"cell_chars":16384,"cell_head_chars":4096},"cells_cut":0,"cells_raw":0,"read":"whole","date_system":"1900"}

{"sheet":"The tracking file.","index":0,"n_rows":73,"n_cols":19,"rows_kept":73,"cut":false,"hidden":false,"merged":[]}
["Sr.","RTA.Code","RTA NUMBER","DATE SUBMITTED","CATEGORY",null,"DISCIPLINE","TITLE/DESCRIPTION","PRIORITY","Status"]
[1,{"$f":"IF(C2=\"\",\"\",Find_By_Regex(C2))","v":"1127"},"RTA-TCF-O-MS-1127-Rev.04",null,null,null,null,null,"**","WFA",null,"WFA","TBS",{"$f":"J7","v":"CORRECT & RESUBMIT"},"Approved","NO OBJECTION","NO OBJECTION AS NOTED","Recall"," =IF(C2=\"\",\"\",Find_By_Regex(C2))"]
[2,{"$f":"IF(C3=\"\",\"\",Find_By_Regex(C3))","v":"1552"},"RTA-TCF-O-GA-1552 Rev.04",null,null,null,null,null,"****","Resubbmitted as Rev.5",null,{"$f":"COUNTIF(J2:J41,L2)","v":6},{"$f":"COUNTIF(J2:J41,M2)","v":3},{"$f":"COUNTIF(J:J,N2)","v":5},{"$f":"COUNTIF(J:J,O2)","v":9},{"$f":"COUNTIF(J:J,P2)","v":8},{"$f":"COUNTIF(J:J,Q2)","v":5},{"$f":"COUNTIF(J:J,R2)","v":7}]
[3,"2121","RTA-TCF-M-GA-2121 Rev.01",null,null,null,null,null,null,"TBS"]
[4,"2132","RTA-TCF-I-GA-2132 Rev.01",null,null,null,null,null,"**","CORRECT & RESUBMIT","2020-09-02"]
[5,"2165","RTA-TCF-E-MS-2165 Rev.01",null,null,null,null,null,"*","WFA"]
[6,"2173","RTA-TCF-A-MS-2173 Rev.03",null,null,null,null,null,"***","CORRECT & RESUBMIT","2020-08-30"]
[7,"2178","RTA-TCF-M-GA-2178 Rev.01",null,null,null,null,null,null,"Approved"]
[8,"2179","RTA-TCF-E-MS-2179 Rev.01",null,null,null,null,null,"**","Approved","2020-08-13"]
[9,"2180","RTA-TCF-T-GA-2180",null,null,null,null,null,"*","NO OBJECTION","2020-08-24"]
[10,"2185","RTA-TCF-E-MS-2185",null,null,null,null,null,"**","CORRECT & RESUBMIT","2020-08-13"]
[11,"2186","RTA-TCF-E-MS-2186",null,null,null,null,null,null,"TBS"]
[12,"2193","RTA-TCF-S-GA-2193",null,null,null,null,null,null,"Approved"]
[13,"2197","RTA-TCF-M-MS-2197",null,null,null,null,null,null,"TBS"]
[14,"2200","RTA-TCF-M-GA-2200",null,null,null,null,null,"***","WFA"]
[15,"2211","RTA-TCF-M-GA-2211",null,null,null,null,null,"*","NO OBJECTION","2020-09-02"]
[16,"2212","RTA-TCF-M-GA-2212",null,null,null,null,null,"*","NO OBJECTION","2020-09-01"]
[17,"2218","RTA-TCF-E-GA-2218",null,null,null,null,null,null,"Approved"]
[18,"2220","RTA-TCF-M-GA-2220",null,null,null,null,null,null,"Recall"]
[19,"2221","RTA-TCF-M-GA-2221",null,null,null,null,null,null,"Recall"]
[20,"2234","RTA-TCF-S-MS-2234",null,null,null,null,null,null,"Approved"]
[21,"2238","RTA-TCF-M-MS-2238",null,null,null,null,null,null,"Approved"]
[22,"2240","RTA-TCF-M-GA-2240",null,null,null,null,null,null,"Approved"]
[23,"2241","RTA-TCF-M-GA-2241",null,null,null,null,null,null,"Approved"]
[24,"2242","RTA-TCF-M-GA-2242",null,null,null,null,null,null,"Approved"]
[25,"2243","RTA-TCF-O-GA-2243",null,null,null,null,null,"***","NO OBJECTION","2020-08-24"]
[26,"2247","RTA-TCF-M-MS-2247 Rev.01",null,null,null,null,null,"**","NO OBJECTION AS NOTED","2020-08-13"]
[27,"2254","RTA-TCF-M-GA-2254",null,null,null,null,null,null,"Recall"]
[28,"2255","RTA-TCF-M-GA-2255",null,null,null,null,null,null,"Recall"]
[29,"2256","RTA-TCF-M-GA-2256",null,null,null,null,null,null,"Recall"]
[30,"2257","RTA-TCF-M-GA-2257",null,null,null,null,null,null,"Recall"]
[31,"2258","RTA-TCF-M-GA-2258",null,null,null,null,null,null,"Recall"]
[32,"2276","RTA-TCF-M-GA-2276",null,null,null,null,null,"*","NO OBJECTION"]
[33,"2237","RTA-TCF-E-GA-2237 Rev.01",null,null,null,null,null,null,"NO OBJECTION AS NOTED","2020-08-26"]
[34,"2288","TA-TCF-M-GA-2288",null,null,null,null,null,null,"NO OBJECTION","2020-08-30"]
[35,"2287","TA-TCF-M-GA-2287",null,null,null,null,null,null,"NO OBJECTION","2020-08-26"]
[36,"2311","RTA-TCF-E-MS-2311",null,null,null,null,null,null,"WFA"]
[37,"1552","RTA-TCF-O-GA-1552 Rev.05",null,null,null,null,null,null,"WFA"]
[38,"2188","RTA-TCF-E-GA-2188 Rev.01",null,null,null,null,null,null,"NO OBJECTION"]
[39,"2314","RTA-TCF-M-GA-2314",null,null,null,null,null,null,"WFA"]
[40,"2313","RTA-TCF-C-MS-2313",null,null,null,null,null,null,"NO OBJECTION AS NOTED","2020-08-26"]
[41,"2320","RTA-TCF-T-MS-2320",null,null,null,null,null,null,"WFA","2020-09-02"]
[42,"2321","RTA-TCF-O-GA-2321",null,null,null,null,null,null,"WFA"]
[43,"2322","RTA-TCF-M-MS-2322",null,null,null,null,null,null,"CORRECT & RESUBMIT","2020-09-01"]
[44,"2324","RTA-TCF-M-MS-2324",null,null,null,null,null,null,"CORRECT & RESUBMIT","2020-08-26"]
[45,"2326","RTA-TCF-I-MS-2326",null,null,null,null,null,null,"WFA"]
[46,"2265","RTA-TCF-M-GA-2265 Rev.01",null,null,null,null,null," ","NO OBJECTION AS NOTED","2020-09-01"]
[47,"2274","RTA-TCF-M-GA-2274 Rev.01",null,null,null,null,null,null,"WFA"]
[48,"2299","RTA-TCF-O-GA-2299",null,null,null,null,null,null,"WFA"]
[49,"2300","RTA-TCF-O-GA-2300",null,null,null,null,null,null,"WFA"]
[50,"2301","RTA-TCF-O-GA-2301",null,null,null,null,null,null,"WFA"]
[51,"2329","RTA-TCF-O-GA-2329",null,null,null,null,null,null,"WFA"]
[52,"2330","RTA-TCF-M-GA-2330",null,null,null,null,null,null,"NO OBJECTION AS NOTED","2020-08-30"]
[53,"2334","RTA-TCF-O-GA-2334",null,null,null,null,null,null,"WFA"]
[54,"2090","RTA-TCF-M-GA-2090 Rev.01",null,null,null,null,null,null,"WFA"]
[55,"2099","RTA-TCF-E-GA-2099 Rev.01",null,null,null,null,null,null,"WFA"]
[56,"2263","RTA-TCF-O-MS-2263 Rev.01",null,null,null,null,null,null,"WFA"]
[57,"2337","RTA-TCF-M-GA-2337",null,null,null,null,null,null,"WFA"]
[58,"2339","RTA-TCF-M-GA-2339",null,null,null,null,null,null,"WFA"]
[59,"2340","RTA-TCF-O-GA-2340",null,null,null,null,null,null,"WFA"]
[60,"2341","RTA-TCF-C-MS-2341",null,null,null,null,null,null,"WFA"]
[61,"2342","RTA-TCF-E-GA-2342",null,null,null,null,null,null,"WFA"]
[62,"2345","RTA-TCF-M-GA-2345",null,null,null,null,null,null,"WFA"]
[null,""]
[null,""]
[null,""]
[null,{"$f":"IF(C67=\"\",\"\",Find_By_Regex(C67))","v":""}]
[null,""]
[null,""]
[null,""]
[null,""]
[null,""]
[null,""]